[Event "5th Thessaloniki SKG Open-B 2024"]
[Site "Thessaloniki"]
[Date "2024.08.11"]
[Round "7.4"]
[White "Chalkias, Michail Panagiotis"]
[Black "Seretis, Anastasios"]
[Result "1-0"]
[ECO "D02"]
[WhiteElo "1772"]
[BlackElo "1612"]
[Annotator "NA RC"]
[PlyCount "75"]
[EventDate "2024.08.05"]
[EventType "swiss"]
[EventCountry "GRE"]
[SourceTitle "playchess.com"]
[Source "ChessBase"]
[SourceQuality "1"]
[TimeControl "40/5400+30:1800+30"]

1. d4 {[%emt 0:00:04]} d5 {[%emt 0:00:06]} 2. Nf3 {[%emt 0:00:04]} Nf6 {[%emt 0:00:14]} 3. Bf4 {[%emt 0:00:05]} Bf5 {[%emt 0:00:26]} 4. c4 {[%emt 0:00:33]} e6 {[%emt 0:00:45]} 5. Qb3 {[%emt 0:00:42]} Nc6 {[%emt 0:01:04]} 6. a3 {[%emt 0:01:02]} Qc8 {[%emt 0:05:01]} 7. Nc3 {[%emt 0:01:36]} dxc4 {[%emt 0:01:21]} 8. Qxc4 {[%emt 0:00:40]} a6 {[%emt 0:02:00]} 9. e3 {[%emt 0:06:47]} Ne4 {[%emt 0:03:53]} 10. Bd3 {[%emt 0:04:57]} Nxc3 {[%emt 0:04:04]} 11. Qxc3 {[%emt 0:00:30]} Bxd3 {[%emt 0:00:08]} 12. Qxd3 {[%emt 0:00:04]} Bd6 {[%emt 0:02:56]} 13. Bg3 {[%emt 0:03:09]} h6 {[%emt 0:03:01]} 14. Rc1 {[%emt 0:01:28]} Qd7 {[%emt 0:03:00]} 15. O-O {[%emt 0:05:16]} O-O {[%emt 0:03:15]} 16. Qe2 {[%emt 0:00:19]} Bxg3 {[%emt 0:02:21]} 17. hxg3 {[%emt 0:00:35]} Rad8 {[%emt 0:00:11]} 18. Rfd1 {[%emt 0:00:42]} Qe7 {[%emt 0:05:57]} 19. Rc5 {[%emt 0:04:27]} Rd6 {[%emt 0:02:07]} 20. Rdc1 {[%emt 0:00:51]} Rfd8 {[%emt 0:05:09]} 21. b4 {[%emt 0:01:58]} Rd5 {[%emt 0:04:50]} 22. b5 {[%emt 0:04:07]} Rxc5 {[%emt 0:02:22]} 23. Rxc5 {[%emt 0:00:02]} Nb8 {[%emt 0:00:53]} 24. Qc2 {[%emt 0:08:07]} c6 {[%emt 0:02:29]} 25. a4 {[%emt 0:05:55]} Rd5 {[%emt 0:02:47]} 26. Rxd5 {[%emt 0:01:00]} exd5 {[%emt 0:00:12]} 27. bxa6 {[%emt 0:00:42]} Nxa6 {[%emt 0:00:29]} 28. Qf5 {[%emt 0:00:28]} Qe6 {[%emt 0:01:58]} 29. Qb1 {[%emt 0:01:46]} Qe7 {[%emt 0:00:51]} 30. Ne5 {[%emt 0:00:49]} g6 {[%emt 0:05:58]} 31. f4 {[%emt 0:08:12]} Kg7 {[%emt 0:02:53]} 32. Kf2 {[%emt 0:09:06]} Qb4 {[%emt 0:07:45]} 33. Qc2 {[%emt 0:05:19]} c5 {[%emt 0:06:14]} 34. Nd3 {[%emt 0:01:57]} Qc4 {[%emt 0:00:22]} 35. Qxc4 {[%emt 0:00:19]} dxc4 {[%emt 0:00:01]} 36. Nxc5 {[%emt 0:00:01]} Nxc5 {[%emt 0:00:03]} 37. dxc5 {[%emt 0:00:02]} f5 {[%emt 0:01:12]} 38. c6 {[%emt 0:00:28]} 1-0

[Event "5th Thessaloniki SKG Open-B 2024"]
[Site "Thessaloniki"]
[Date "2024.08.11"]
[Round "7.5"]
[White "Bulut, Kemal"]
[Black "Nakitsas, Stergios"]
[Result "0-1"]
[ECO "C14"]
[WhiteElo "1664"]
[BlackElo "1759"]
[Annotator "NA RC"]
[PlyCount "62"]
[EventDate "2024.08.05"]
[EventType "swiss"]
[EventCountry "GRE"]
[SourceTitle "playchess.com"]
[Source "ChessBase"]
[SourceQuality "1"]
[TimeControl "40/5400+30:1800+30"]

1. e4 {[%emt 0:02:44]} e6 {[%emt 0:00:09]} 2. d4 {[%emt 0:00:18]} d5 {[%emt 0:00:06]} 3. Nc3 {[%emt 0:00:15]} Nf6 {[%emt 0:00:09]} 4. Bg5 {[%emt 0:04:04]} Be7 {[%emt 0:00:06]} 5. e5 {[%emt 0:00:08]} Nfd7 {[%emt 0:00:10]} 6. Bxe7 {[%emt 0:07:46]} Qxe7 {[%emt 0:00:06]} 7. f4 {[%emt 0:00:15]} a6 {[%emt 0:00:13]} 8. Nf3 {[%emt 0:00:30]} c5 {[%emt 0:00:17]} 9. dxc5 {[%emt 0:03:48]} Nxc5 {[%emt 0:01:19]} 10. Bd3 {[%emt 0:00:15]} Nc6 {[%emt 0:01:37]} 11. O-O {[%emt 0:02:45]} Nxd3 {[%emt 0:08:30]} 12. cxd3 {[%emt 0:00:21]} O-O {[%emt 0:01:02]} 13. d4 {[%emt 0:01:37]} f6 {[%emt 0:04:24]} 14. Qd2 {[%emt 0:03:03]} fxe5 {[%emt 0:04:30]} 15. fxe5 {[%emt 0:04:42]} Bd7 {[%emt 0:00:27]} 16. a4 {[%emt 0:05:00]} Na5 {[%emt 0:02:45]} 17. Nxd5 {[%emt 0:15:05]} Qd8 {[%emt 0:01:11]} 18. Ne7+ {[%emt 0:03:41]} Kh8 {[%emt 0:00:40]} 19. Qg5 {[%emt 0:01:54]} Rf7 {[%emt 0:00:23]} 20. Ng6+ {[%emt 0:11:41]} hxg6 {[%emt 0:00:08]} 21. Qxg6 {[%emt 0:00:02]} Qe8 {[%emt 0:01:05]} 22. Qg3 {[%emt 0:03:03]} Kg8 {[%emt 0:03:08]} 23. Qh4 {[%emt 0:06:49]} Bc6 {[%emt 0:03:51]} 24. Ng5 {[%emt 0:01:26]} Rxf1+ {[%emt 0:00:21]} 25. Rxf1 {[%emt 0:00:01]} Qg6 {[%emt 0:00:11]} 26. g3 {[%emt 0:00:06]} Nc4 {[%emt 0:02:33]} 27. Qf4 {[%emt 0:03:03]} Nxb2 {[%emt 0:03:18]} 28. Qh4 {[%emt 0:01:25]} Bd5 {[%emt 0:02:06]} 29. Rf4 {[%emt 0:03:08]} Rc8 {[%emt 0:00:38]} 30. Nf3 {[%emt 0:00:51]} Nd3 {[%emt 0:01:01]} 31. Rg4 {[%emt 0:00:19]} Bxf3 {[%emt 0:00:23]} 0-1

[Event "5th Thessaloniki SKG Open-B 2024"]
[Site "Thessaloniki"]
[Date "2024.08.11"]
[Round "7.6"]
[White "Gkogkolas, Georgios"]
[Black "Danis, Hrisovalantis"]
[Result "0-1"]
[ECO "B38"]
[WhiteElo "1690"]
[BlackElo "1983"]
[Annotator "NA RC"]
[PlyCount "56"]
[EventDate "2024.08.05"]
[EventType "swiss"]
[EventCountry "GRE"]
[SourceTitle "playchess.com"]
[Source "ChessBase"]
[SourceQuality "1"]
[TimeControl "40/5400+30:1800+30"]

1. e4 {[%emt 0:00:04]} c5 {[%emt 0:02:37]} 2. Nf3 {[%emt 0:00:15]} g6 {[%emt 0:01:10]} 3. d4 {[%emt 0:00:21]} cxd4 {[%emt 0:00:05]} 4. Nxd4 {[%emt 0:00:05]} Nc6 {[%emt 0:00:12]} 5. c4 {[%emt 0:00:14]} Bg7 {[%emt 0:00:14]} 6. Be3 {[%emt 0:00:19]} Nf6 {[%emt 0:01:01]} 7. Nc3 {[%emt 0:00:16]} a5 {[%emt 0:01:12]} 8. Be2 {[%emt 0:01:50]} a4 {[%emt 0:01:16]} 9. O-O {[%emt 0:04:06]} O-O {[%emt 0:02:21]} 10. f4 {[%emt 0:05:11]} d6 {[%emt 0:09:57]} 11. Bf3 {[%emt 0:10:52]} Be6 {[%emt 0:23:39]} 12. Nxe6 {[%emt 0:12:22]} fxe6 {[%emt 0:00:06]} 13. Nxa4 {[%emt 0:02:55]} e5 {[%emt 0:03:04]} 14. Nb6 {[%emt 0:16:47]} exf4 {[%emt 0:03:12]} 15. Bf2 {[%emt 0:04:22]} Ra6 {[%emt 0:05:16]} 16. Nd5 {[%emt 0:02:05]} Nd7 {[%emt 0:06:34]} 17. Rb1 {[%emt 0:08:35]} Nde5 {[%emt 0:05:45]} 18. b4 {[%emt 0:05:11]} Rxa2 {[%emt 0:03:16]} 19. b5 {[%emt 0:02:10]} Nxf3+ {[%emt 0:03:00]} 20. Qxf3 {[%emt 0:01:54]} Ne5 {[%emt 0:01:08]} 21. Qb3 {[%emt 0:00:44]} Rd2 {[%emt 0:03:55]} 22. Rfd1 {[%emt 0:04:52]} Rxf2 {[%emt 0:03:54]} 23. Kxf2 {[%emt 0:01:07]} e6 {[%emt 0:00:06]} 24. Nb4 {[%emt 0:02:09]} Qh4+ {[%emt 0:09:24]} 25. Kg1 {[%emt 0:01:47]} f3 {[%emt 0:00:21]} 26. Rf1 {[%emt 0:01:32]} Ng4 {[%emt 0:01:36]} 27. h3 {[%emt 0:04:36]} Bd4+ {[%emt 0:00:08]} 28. Kh1 {[%emt 0:00:35]} Qg3 {[%emt 0:00:13]} 0-1

[Event "5th Thessaloniki SKG Open-B 2024"]
[Site "Thessaloniki"]
[Date "2024.08.11"]
[Round "7.7"]
[White "Bokias, Petros"]
[Black "Vakalopoulos, Hristos"]
[Result "0-1"]
[ECO "B21"]
[WhiteElo "1709"]
[BlackElo "1866"]
[Annotator "NA RC"]
[PlyCount "72"]
[EventDate "2024.08.05"]
[EventType "swiss"]
[EventCountry "GRE"]
[SourceTitle "playchess.com"]
[Source "ChessBase"]
[SourceQuality "1"]
[TimeControl "40/5400+30:1800+30"]

1. e4 {[%emt 0:09:34]} c5 {[%emt 0:00:04]} 2. d4 {[%emt 0:00:04]} cxd4 {[%emt 0:00:06]} 3. c3 {[%emt 0:00:03]} dxc3 {[%emt 0:01:58]} 4. Nxc3 {[%emt 0:00:08]} Nc6 {[%emt 0:00:21]} 5. Nf3 {[%emt 0:00:05]} d6 {[%emt 0:00:43]} 6. Bc4 {[%emt 0:00:09]} a6 {[%emt 0:01:07]} 7. O-O {[%emt 0:00:44]} Nf6 {[%emt 0:00:47]} 8. Qe2 {[%emt 0:25:44]} Bg4 {[%emt 0:02:37]} 9. e5 {[%emt 0:10:21]} Bxf3 {[%emt 0:02:36]} 10. Qxf3 {[%emt 0:01:54]} Nxe5 {[%emt 0:02:48]} 11. Qxb7 {[%emt 0:00:06]} Nxc4 {[%emt 0:03:32]} 12. Qc6+ {[%emt 0:00:16]} Nd7 {[%emt 0:00:05]} 13. Qxc4 {[%emt 0:00:36]} e6 {[%emt 0:01:08]} 14. Re1 {[%emt 0:15:17]} Be7 {[%emt 0:04:34]} 15. Qg4 {[%emt 0:06:39]} Kf8 {[%emt 0:00:59]} 16. Bf4 {[%emt 0:05:21]} h5 {[%emt 0:06:14]} 17. Qe2 {[%emt 0:00:30]} g5 {[%emt 0:13:28]} 18. Be3 {[%emt 0:08:26]} Qa5 {[%emt 0:00:04]} 19. Rad1 {[%emt 0:02:30]} Qf5 {[%emt 0:06:49]} 20. Bd4 {[%emt 0:04:47]} Rh6 {[%emt 0:10:04]} 21. Nd5 {[%emt 0:00:18]} e5 {[%emt 0:02:28]} 22. Nxe7 {[%emt 0:01:23]} Kxe7 {[%emt 0:00:09]} 23. Bc3 {[%emt 0:02:22]} a5 {[%emt 0:07:26]} 24. Rd5 {[%emt 0:00:30]} Rc8 {[%emt 0:09:38]} 25. Rxa5 {[%emt 0:00:58]} Nc5 {[%emt 0:02:46]} 26. Ra7+ {[%emt 0:00:42]} Kf8 {[%emt 0:00:31]} 27. a4 {[%emt 0:03:40]} Rf6 {[%emt 0:05:54]} 28. h3 {[%emt 0:00:44]} g4 {[%emt 0:03:15]} 29. hxg4 {[%emt 0:00:35]} hxg4 {[%emt 0:00:17]} 30. f3 {[%emt 0:00:26]} g3 {[%emt 0:02:02]} 31. Bxe5 {[%emt 0:00:06]} dxe5 {[%emt 0:01:15]} 32. Ra5 {[%emt 0:00:57]} Qh5 {[%emt 0:04:06]} 33. Qxe5 {[%emt 0:00:15]} Qh2+ {[%emt 0:00:53]} 34. Kf1 {[%emt 0:00:02]} Qh1+ {[%emt 0:00:17]} 35. Ke2 {[%emt 0:00:03]} Qxg2+ {[%emt 0:00:57]} 36. Kd1 {[%emt 0:01:20]} Rd8+ {[%emt 0:00:27]} 0-1

[Event "5th Thessaloniki SKG Open-B 2024"]
[Site "Thessaloniki"]
[Date "2024.08.12"]
[Round "8.1"]
[White "Avanesyan, Aleksandr"]
[Black "Ioannidis, Konstantinos I"]
[Result "1-0"]
[ECO "A24"]
[WhiteElo "1700"]
[BlackElo "1683"]
[Annotator "NA"]
[PlyCount "59"]
[EventDate "2024.08.05"]
[EventType "swiss"]
[EventCountry "GRE"]
[SourceTitle "playchess.com"]
[Source "ChessBase"]
[SourceQuality "1"]
[TimeControl "40/5400+30:1800+30"]

1. c4 {[%emt 0:00:04]} Nf6 {[%emt 0:00:04]} 2. Nc3 {[%emt 0:00:05]} g6 {[%emt 0:00:05]} 3. g3 {[%emt 0:00:07]} Bg7 {[%emt 0:00:05]} 4. Bg2 {[%emt 0:00:05]} O-O {[%emt 0:00:07]} 5. d3 {[%emt 0:00:09]} d6 {[%emt 0:00:06]} 6. Nf3 {[%emt 0:00:04]} e5 {[%emt 0:00:08]} 7. O-O {[%emt 0:00:15]} h6 {[%emt 0:00:38]} 8. e4 {[%emt 0:04:31]} Qe7 {[%emt 0:02:27]} 9. h3 {[%emt 0:01:45]} Nbd7 {[%emt 0:03:06]} 10. Be3 {[%emt 0:00:30]} c6 {[%emt 0:01:20]} 11. Qd2 {[%emt 0:08:20]} Kh7 {[%emt 0:00:08]} 12. Ne1 {[%emt 0:00:42]} Ne8 {[%emt 0:09:37]} 13. Nc2 {[%emt 0:03:37]} Nc7 {[%emt 0:03:04]} 14. b3 {[%emt 0:07:00]} Nf6 {[%emt 0:09:02]} 15. d4 {[%emt 0:12:24]} Bd7 {[%emt 0:01:31]} 16. Rac1 {[%emt 0:05:24]} Rad8 {[%emt 0:01:42]} 17. d5 {[%emt 0:05:31]} c5 {[%emt 0:00:57]} 18. b4 {[%emt 0:01:27]} b6 {[%emt 0:01:03]} 19. Kh2 {[%emt 0:03:33]} Ng8 {[%emt 0:05:05]} 20. bxc5 {[%emt 0:00:33]} bxc5 {[%emt 0:01:11]} 21. Bxc5 {[%emt 0:00:37]} dxc5 {[%emt 0:00:11]} 22. d6 {[%emt 0:00:01]} Qe6 {[%emt 0:00:55]} 23. dxc7 {[%emt 0:00:11]} Rc8 {[%emt 0:00:03]} 24. Nd5 {[%emt 0:00:25]} Ne7 {[%emt 0:00:26]} 25. Nce3 {[%emt 0:00:54]} Bc6 {[%emt 0:02:08]} 26. Qa5 {[%emt 0:00:39]} f5 {[%emt 0:06:26]} 27. Qxc5 {[%emt 0:01:11]} Rf7 {[%emt 0:00:35]} 28. Nxe7 {[%emt 0:00:30]} Rxe7 {[%emt 0:00:54]} 29. exf5 {[%emt 0:00:06]} gxf5 {[%emt 0:00:04]} 30. Qxc6 {[%emt 0:00:24]} 1-0

[Event "5th Thessaloniki SKG Open-B 2024"]
[Site "Thessaloniki"]
[Date "2024.08.12"]
[Round "8.2"]
[White "Nakitsas, Stergios"]
[Black "Pantoglou, Dimitrios"]
[Result "0-1"]
[ECO "C02"]
[WhiteElo "1759"]
[BlackElo "1893"]
[Annotator "NA"]
[PlyCount "106"]
[EventDate "2024.08.05"]
[EventType "swiss"]
[EventCountry "GRE"]
[SourceTitle "playchess.com"]
[Source "ChessBase"]
[SourceQuality "1"]
[TimeControl "40/5400+30:1800+30"]

1. e4 {[%emt 0:03:30]} e6 {[%emt 0:03:51]} 2. d4 {[%emt 0:00:28]} d5 {[%emt 0:00:09]} 3. e5 {[%emt 0:00:18]} c5 {[%emt 0:00:08]} 4. c3 {[%emt 0:00:10]} Nc6 {[%emt 0:00:10]} 5. Nf3 {[%emt 0:00:10]} Bd7 {[%emt 0:00:08]} 6. a3 {[%emt 0:00:11]} c4 {[%emt 0:00:07]} 7. Nbd2 {[%emt 0:00:15]} Na5 {[%emt 0:00:10]} 8. Be2 {[%emt 0:00:18]} Bc6 {[%emt 0:00:08]} 9. O-O {[%emt 0:05:16]} Qd7 {[%emt 0:00:20]} 10. Qe1 {[%emt 0:10:18]} Ba4 {[%emt 0:04:32]} 11. Bd1 {[%emt 0:01:19]} Ne7 {[%emt 0:03:25]} 12. Rb1 {[%emt 0:00:51]} Nc8 {[%emt 0:08:13]} 13. Bxa4 {[%emt 0:14:38]} Qxa4 {[%emt 0:00:11]} 14. Qd1 {[%emt 0:01:16]} Nb6 {[%emt 0:01:48]} 15. b3 {[%emt 0:08:16]} cxb3 {[%emt 0:00:09]} 16. Nxb3 {[%emt 0:00:03]} Nxb3 {[%emt 0:07:42]} 17. Qxb3 {[%emt 0:02:00]} O-O-O {[%emt 0:03:35]} 18. Bg5 {[%emt 0:10:45]} Rd7 {[%emt 0:09:50]} 19. Qxa4 {[%emt 0:01:04]} Nxa4 {[%emt 0:01:00]} 20. Rb3 {[%emt 0:00:06]} h6 {[%emt 0:02:37]} 21. Be3 {[%emt 0:00:06]} Rc7 {[%emt 0:00:49]} 22. Rc1 {[%emt 0:00:08]} Be7 {[%emt 0:01:01]} 23. Nd2 {[%emt 0:03:17]} Kb8 {[%emt 0:04:28]} 24. c4 {[%emt 0:03:07]} dxc4 {[%emt 0:02:14]} 25. Nxc4 {[%emt 0:01:50]} Rhc8 {[%emt 0:00:46]} 26. Rcb1 {[%emt 0:00:05]} b6 {[%emt 0:01:42]} 27. Nd6 {[%emt 0:01:26]} Bxd6 {[%emt 0:01:08]} 28. exd6 {[%emt 0:00:04]} Rd7 {[%emt 0:06:49]} 29. Rc1 {[%emt 0:07:54]} Rxc1+ {[%emt 0:00:25]} 30. Bxc1 {[%emt 0:00:02]} Kb7 {[%emt 0:00:33]} 31. Bf4 {[%emt 0:00:19]} a6 {[%emt 0:01:51]} 32. h4 {[%emt 0:03:58]} h5 {[%emt 0:00:34]} 33. f3 {[%emt 0:00:51]} b5 {[%emt 0:00:09]} 34. g4 {[%emt 0:00:34]} g6 {[%emt 0:00:56]} 35. gxh5 {[%emt 0:05:40]} gxh5 {[%emt 0:00:11]} 36. Kf2 {[%emt 0:00:49]} Nb6 {[%emt 0:00:46]} 37. Rd3 {[%emt 0:02:15]} Kc6 {[%emt 0:02:58]} 38. Rc3+ {[%emt 0:02:03]} Nc4 {[%emt 0:08:11]} 39. Be5 {[%emt 0:03:20]} Kd5 {[%emt 0:15:48]} 40. Kg3 {[%emt 0:00:00]} Nxe5 {[%emt 0:00:00]} 41. dxe5 {[%emt 0:02:27]} Kxe5 {[%emt 0:06:57]} 42. Rc5+ {[%emt 0:00:18]} Kxd6 {[%emt 0:00:12]} 43. Rxh5 {[%emt 0:00:05]} Rb7 {[%emt 0:00:06]} 44. Rg5 {[%emt 0:02:11]} Rb8 {[%emt 0:32:12]} 45. h5 {[%emt 0:02:30]} Ke7 {[%emt 0:00:54]} 46. Kh4 {[%emt 0:01:22]} Kf6 {[%emt 0:01:56]} 47. h6 {[%emt 0:01:34]} b4 {[%emt 0:00:28]} 48. axb4 {[%emt 0:04:24]} Rxb4+ {[%emt 0:00:01]} 49. Kh5 {[%emt 0:00:11]} Rb1 {[%emt 0:02:08]} 50. Ra5 {[%emt 0:00:10]} Rb5+ {[%emt 0:00:28]} 51. Rxb5 {[%emt 0:00:33]} axb5 {[%emt 0:00:02]} 52. f4 {[%emt 0:00:07]} b4 {[%emt 0:00:10]} 53. f5 {[%emt 0:00:03]} exf5 {[%emt 0:00:14]} 0-1

[Event "5th Thessaloniki SKG Open-B 2024"]
[Site "Thessaloniki"]
[Date "2024.08.12"]
[Round "8.3"]
[White "Seretis, Nikolaos G"]
[Black "Polyzos, Vasileios"]
[Result "1-0"]
[ECO "B22"]
[WhiteElo "1675"]
[BlackElo "1700"]
[Annotator "NA RC"]
[PlyCount "125"]
[EventDate "2024.08.05"]
[EventType "swiss"]
[EventCountry "GRE"]
[SourceTitle "playchess.com"]
[Source "ChessBase"]
[SourceQuality "1"]
[TimeControl "40/5400+30:1800+30"]

1. e4 {[%emt 0:00:03]} c5 {[%emt 0:00:06]} 2. Nf3 {[%emt 0:00:05]} e6 {[%emt 0:00:05]} 3. c3 {[%emt 0:00:19]} Nf6 {[%emt 0:00:12]} 4. e5 {[%emt 0:00:08]} Nd5 {[%emt 0:00:06]} 5. g3 {[%emt 0:00:08]} Nc6 {[%emt 0:00:22]} 6. Bg2 {[%emt 0:00:06]} d6 {[%emt 0:00:09]} 7. exd6 {[%emt 0:00:05]} Bxd6 {[%emt 0:00:08]} 8. O-O {[%emt 0:00:07]} O-O {[%emt 0:00:11]} 9. d4 {[%emt 0:00:06]} h6 {[%emt 0:01:45]} 10. dxc5 {[%emt 0:01:03]} Bxc5 {[%emt 0:00:10]} 11. Nbd2 {[%emt 0:00:52]} Qe7 {[%emt 0:04:07]} 12. Nb3 {[%emt 0:01:49]} Bb6 {[%emt 0:00:49]} 13. Nfd4 {[%emt 0:01:58]} Nxd4 {[%emt 0:03:13]} 14. Nxd4 {[%emt 0:00:21]} Rd8 {[%emt 0:01:11]} 15. Qg4 {[%emt 0:05:05]} Kh8 {[%emt 0:31:25]} 16. Qe2 {[%emt 0:11:27]} e5 {[%emt 0:04:17]} 17. Nc2 {[%emt 0:02:19]} Bf5 {[%emt 0:06:58]} 18. Rd1 {[%emt 0:01:58]} Nf6 {[%emt 0:10:23]} 19. Ne3 {[%emt 0:06:21]} Rxd1+ {[%emt 0:01:23]} 20. Nxd1 {[%emt 0:05:22]} Rd8 {[%emt 0:01:57]} 21. Ne3 {[%emt 0:03:32]} Bd3 {[%emt 0:01:26]} 22. Qf3 {[%emt 0:02:35]} e4 {[%emt 0:02:46]} 23. Qf5 {[%emt 0:04:03]} Be2 {[%emt 0:04:40]} 24. Bf1 {[%emt 0:06:16]} Bxe3 {[%emt 0:04:16]} 25. Bxe3 {[%emt 0:01:14]} Bg4 {[%emt 0:01:43]} 26. Qc5 {[%emt 0:09:39]} Qxc5 {[%emt 0:00:36]} 27. Bxc5 {[%emt 0:00:14]} Rd2 {[%emt 0:01:41]} 28. Bxa7 {[%emt 0:03:11]} Rxb2 {[%emt 0:00:18]} 29. Bd4 {[%emt 0:00:36]} Rc2 {[%emt 0:05:47]} 30. Bc4 {[%emt 0:02:24]} Kg8 {[%emt 0:01:27]} 31. Bxf6 {[%emt 0:06:03]} gxf6 {[%emt 0:12:23]} 32. Bd5 {[%emt 0:00:29]} f5 {[%emt 0:00:00]} 33. Bxb7 {[%emt 0:00:51]} Rxc3 {[%emt 0:00:00]} 34. a4 {[%emt 0:00:42]} Rc7 {[%emt 0:00:00]} 35. Ba6 {[%emt 0:00:21]} Kf8 {[%emt 0:00:00]} 36. Kf1 {[%emt 0:00:29]} Ke7 {[%emt 0:00:00]} 37. Be2 {[%emt 0:00:47]} Kd6 {[%emt 0:00:00]} 38. Bxg4 {[%emt 0:00:12]} fxg4 {[%emt 0:00:00]} 39. a5 {[%emt 0:00:08]} Ra7 {[%emt 0:01:31]} 40. a6 {[%emt 0:00:00]} Ke5 {[%emt 0:00:00]} 41. Ke2 {[%emt 0:00:33]} Kd4 {[%emt 0:04:58]} 42. Ra4+ {[%emt 0:00:16]} Ke5 {[%emt 0:02:09]} 43. Ke3 {[%emt 0:00:05]} f5 {[%emt 0:00:28]} 44. Ra5+ {[%emt 0:00:23]} Ke6 {[%emt 0:03:27]} 45. Kd4 {[%emt 0:00:39]} Rd7+ {[%emt 0:02:18]} 46. Kc5 {[%emt 0:00:16]} Rd5+ {[%emt 0:02:02]} 47. Kb4 {[%emt 0:00:14]} Rd4+ {[%emt 0:01:00]} 48. Kc3 {[%emt 0:00:07]} Rd8 {[%emt 0:00:34]} 49. a7 {[%emt 0:01:06]} Ra8 {[%emt 0:00:10]} 50. Kc4 {[%emt 0:00:15]} Kd6 {[%emt 0:02:51]} 51. Ra6+ {[%emt 0:00:42]} Kc7 {[%emt 0:02:08]} 52. Rxh6 {[%emt 0:00:27]} Rc8 {[%emt 0:01:07]} 53. Rh7+ {[%emt 0:00:22]} Kb6+ {[%emt 0:00:13]} 54. Kd5 {[%emt 0:00:34]} Re8 {[%emt 0:00:39]} 55. Re7 {[%emt 0:00:59]} Rc8 {[%emt 0:01:38]} 56. Ke5 {[%emt 0:00:32]} Rc5+ {[%emt 0:00:22]} 57. Kf6 {[%emt 0:01:12]} Ra5 {[%emt 0:00:18]} 58. Re5 {[%emt 0:05:50]} Rxa7 {[%emt 0:00:21]} 59. Kxf5 {[%emt 0:00:16]} Rf7+ {[%emt 0:02:02]} 60. Kxg4 {[%emt 0:00:13]} Rxf2 {[%emt 0:00:06]} 61. h4 {[%emt 0:00:53]} Re2 {[%emt 0:00:52]} 62. Kf4 {[%emt 0:00:22]} Kc6 {[%emt 0:00:42]} 63. Rxe4 {[%emt 0:00:10]} 1-0

[Event "5th Thessaloniki SKG Open-B 2024"]
[Site "Thessaloniki"]
[Date "2024.08.12"]
[Round "8.4"]
[White "Vakalopoulos, Hristos"]
[Black "Chalkias, Michail Panagiotis"]
[Result "1/2-1/2"]
[ECO "E71"]
[WhiteElo "1866"]
[BlackElo "1772"]
[Annotator "NA"]
[PlyCount "50"]
[EventDate "2024.08.05"]
[EventType "swiss"]
[EventCountry "GRE"]
[SourceTitle "playchess.com"]
[Source "ChessBase"]
[SourceQuality "1"]
[TimeControl "40/5400+30:1800+30"]

1. d4 {[%emt 0:00:03]} Nf6 {[%emt 0:00:04]} 2. c4 {[%emt 0:00:03]} g6 {[%emt 0:00:04]} 3. Nc3 {[%emt 0:00:08]} Bg7 {[%emt 0:00:04]} 4. e4 {[%emt 0:00:11]} d6 {[%emt 0:00:03]} 5. h3 {[%emt 0:00:14]} O-O {[%emt 0:00:07]} 6. Be3 {[%emt 0:00:04]} e5 {[%emt 0:00:09]} 7. d5 {[%emt 0:00:14]} Na6 {[%emt 0:00:17]} 8. g4 {[%emt 0:07:16]} Nc5 {[%emt 0:00:10]} 9. f3 {[%emt 0:02:51]} a5 {[%emt 0:00:04]} 10. Nge2 {[%emt 0:05:01]} c6 {[%emt 0:00:24]} 11. Ng3 {[%emt 0:04:27]} cxd5 {[%emt 0:01:35]} 12. cxd5 {[%emt 0:00:40]} Bd7 {[%emt 0:00:07]} 13. h4 {[%emt 0:06:31]} h5 {[%emt 0:00:35]} 14. Bg5 {[%emt 0:18:09]} Qb6 {[%emt 0:10:47]} 15. Qd2 {[%emt 0:05:06]} hxg4 {[%emt 0:02:30]} 16. h5 {[%emt 0:01:39]} gxf3 {[%emt 0:02:04]} 17. O-O-O {[%emt 0:22:32]} Nxh5 {[%emt 0:08:05]} 18. Rxh5 {[%emt 0:11:33]} gxh5 {[%emt 0:00:21]} 19. Nxh5 {[%emt 0:03:45]} f5 {[%emt 0:02:27]} 20. Bh6 {[%emt 0:01:35]} Rf7 {[%emt 0:03:43]} 21. Bxg7 {[%emt 0:01:36]} Rxg7 {[%emt 0:01:13]} 22. Nxg7 {[%emt 0:00:03]} Kxg7 {[%emt 1:06:37]} 23. Qg5+ {[%emt 0:02:19]} Kf7 {[%emt 0:00:00]} 24. Qh5+ {[%emt 0:00:54]} Ke7 {[%emt 0:00:00]} 25. Qg5+ {[%emt 0:02:20]} Kf7 {[%emt 0:00:00]} 1/2-1/2